[Event "Live Chess"]
[Site "Chess.com"]
[Date "2023.05.21"]
[Round "-"]
[White "Davidagye"]
[Black "Mugzwang"]
[Result "1-0"]
[WhiteElo "1674"]
[BlackElo "1509"]
[TimeControl "300"]
[EndTime "2:53:00 PDT"]
[Termination "Davidagye won by resignation"]

1. b4 {[%clk 0:04:57.2]} 1... Nf6 {[%clk 0:04:53.5]} 2. Bb2 {[%clk 0:04:51.2]}
2... e6 {[%clk 0:04:51.8]} 3. a3 {[%clk 0:04:49.3]} 3... Be7 {[%clk 0:04:50]} 4.
Nf3 {[%clk 0:04:47.2]} 4... d5 {[%clk 0:04:49.4]} 5. e3 {[%clk 0:04:45.9]} 5...
Nbd7 {[%clk 0:04:48.9]} 6. c4 {[%clk 0:04:44.5]} 6... c6 {[%clk 0:04:45.2]} 7.
d4 {[%clk 0:04:43.8]} 7... dxc4 {[%clk 0:04:43.4]} 8. Bxc4 {[%clk 0:04:42.2]}
8... O-O {[%clk 0:04:42.3]} 9. O-O {[%clk 0:04:41.5]} 9... a6 {[%clk 0:04:35]}
10. Qe2 {[%clk 0:04:39.9]} 10... b5 {[%clk 0:04:33.9]} 11. Bb3 {[%clk
0:04:38.7]} 11... Bb7 {[%clk 0:04:32.9]} 12. Rd1 {[%clk 0:04:38]} 12... Ne4
{[%clk 0:04:22]} 13. Nbd2 {[%clk 0:04:36.5]} 13... Ndf6 {[%clk 0:04:18.6]} 14.
Qd3 {[%clk 0:04:34.1]} 14... Nxd2 {[%clk 0:04:15.5]} 15. Nxd2 {[%clk 0:04:32.3]}
15... Rc8 {[%clk 0:04:03.8]} 16. Ne4 {[%clk 0:04:26.3]} 16... Nxe4 {[%clk
0:03:55.2]} 17. Qxe4 {[%clk 0:04:24.1]} 17... Qc7 {[%clk 0:03:49.4]} 18. Qg4
{[%clk 0:04:14.3]} 18... Bf6 {[%clk 0:03:34.6]} 19. f4 {[%clk 0:04:11.9]} 19...
Rcd8 {[%clk 0:03:19.5]} 20. Rac1 {[%clk 0:04:08.5]} 20... Qb6 {[%clk 0:03:01.6]}
21. Rc5 {[%clk 0:04:05.8]} 21... Qc7 {[%clk 0:02:43.7]} 22. Rh5 {[%clk 0:04:01]}
22... Bc8 {[%clk 0:02:35.5]} 23. Qg3 {[%clk 0:03:55]} 23... g6 {[%clk
0:02:14.4]} 24. Rc1 {[%clk 0:03:43.3]} 24... Bg7 {[%clk 0:02:07.6]} 25. Rhc5
{[%clk 0:03:41.1]} 25... Rfe8 {[%clk 0:01:49.7]} 26. h4 {[%clk 0:03:34.3]} 26...
Bf8 {[%clk 0:01:48.5]} 27. Rxc6 {[%clk 0:03:25.5]} 27... Qd7 {[%clk 0:01:40.2]}
28. Rc7 {[%clk 0:03:12.6]} 28... Qd6 {[%clk 0:01:28.2]} 29. R1c6 {[%clk
0:03:06.3]} 1-0

[Event "Live Chess"]
[Site "Chess.com"]
[Date "2023.05.21"]
[Round "-"]
[White "TheSmoulderingMaster"]
[Black "Brooms1989"]
[Result "1-0"]
[WhiteElo "1721"]
[BlackElo "1109"]
[TimeControl "300"]
[EndTime "2:53:08 PDT"]
[Termination "TheSmoulderingMaster won by resignation"]

1. e4 {[%clk 0:04:59.2]} 1... e5 {[%clk 0:04:56.7]} 2. Nf3 {[%clk 0:04:58.1]}
2... Nc6 {[%clk 0:04:48.1]} 3. Bb5 {[%clk 0:04:56.9]} 3... a6 {[%clk 0:04:42.8]}
4. Ba4 {[%clk 0:04:55.6]} 4... Nf6 {[%clk 0:04:41.2]} 5. O-O {[%clk 0:04:54.8]}
5... Bc5 {[%clk 0:04:38.5]} 6. c3 {[%clk 0:04:53.4]} 6... Bb6 {[%clk 0:04:35.5]}
7. d4 {[%clk 0:04:51.9]} 7... d6 {[%clk 0:04:30.1]} 8. dxe5 {[%clk 0:04:46.5]}
8... dxe5 {[%clk 0:04:26.4]} 9. Nxe5 {[%clk 0:04:45.5]} 9... Bd7 {[%clk
0:04:15.9]} 10. Nxd7 {[%clk 0:04:41.7]} 10... Qxd7 {[%clk 0:04:12.7]} 11. Qf3
{[%clk 0:04:37.6]} 11... O-O {[%clk 0:04:05.6]} 12. Nd2 {[%clk 0:04:35.5]} 12...
Rfe8 {[%clk 0:03:59.8]} 13. Nc4 {[%clk 0:04:28.6]} 13... Rxe4 {[%clk 0:03:50.7]}
14. Bb3 {[%clk 0:04:23.3]} 14... Rae8 {[%clk 0:03:35.3]} 15. Bg5 {[%clk
0:04:20.1]} 15... Qe7 {[%clk 0:02:47]} 16. Bxf6 {[%clk 0:04:12.9]} 16... Qxf6
{[%clk 0:02:43.6]} 17. Qxf6 {[%clk 0:04:08.8]} 17... gxf6 {[%clk 0:02:43.5]} 18.
Nxb6 {[%clk 0:04:08]} 18... cxb6 {[%clk 0:02:41.1]} 19. g3 {[%clk 0:04:06.9]}
19... Na5 {[%clk 0:02:37.3]} 20. Bc2 {[%clk 0:04:00.8]} 20... Re2 {[%clk
0:02:35.2]} 21. Rac1 {[%clk 0:03:58.1]} 21... Nc4 {[%clk 0:02:30]} 22. Bd3
{[%clk 0:03:55.9]} 22... Rxb2 {[%clk 0:02:14.8]} 23. Bxc4 {[%clk 0:03:53.6]}
23... Rd8 {[%clk 0:02:12.3]} 24. Rfe1 {[%clk 0:03:51.3]} 24... Rdd2 {[%clk
0:02:09]} 25. Rf1 {[%clk 0:03:43.7]} 25... Kg7 {[%clk 0:02:05.8]} 26. Rce1
{[%clk 0:03:41.8]} 26... Kh6 {[%clk 0:02:04.2]} 27. Re7 {[%clk 0:03:36.7]} 27...
Kg5 {[%clk 0:02:01.4]} 28. Rxf7 {[%clk 0:03:34.7]} 28... Kg4 {[%clk 0:02:00.3]}
29. Rg7+ {[%clk 0:03:33.4]} 29... Kf3 {[%clk 0:01:59.3]} 30. Rf7 {[%clk
0:03:22.9]} 30... Kg4 {[%clk 0:01:32.1]} 31. Rxf6 {[%clk 0:03:19.3]} 31... h5
{[%clk 0:01:31.3]} 32. Be6+ {[%clk 0:03:13.8]} 32... Kg5 {[%clk 0:01:30.1]} 33.
Rf8 {[%clk 0:03:07.8]} 33... h4 {[%clk 0:01:26.4]} 34. Rg8+ {[%clk 0:03:04.6]}
34... Kf6 {[%clk 0:01:22.4]} 35. Bc4 {[%clk 0:02:56]} 35... hxg3 {[%clk
0:01:18.2]} 36. hxg3 {[%clk 0:02:54.2]} 36... Kf5 {[%clk 0:01:15.2]} 37. Rf8+
{[%clk 0:02:50.9]} 37... Kg4 {[%clk 0:01:13.8]} 38. Rf4+ {[%clk 0:02:49]} 38...
Kg5 {[%clk 0:01:12.2]} 39. Rf7 {[%clk 0:02:46]} 39... Kg4 {[%clk 0:01:10.8]} 40.
Rxb7 {[%clk 0:02:43.1]} 40... b5 {[%clk 0:01:08.6]} 41. Be6+ {[%clk 0:02:37.9]}
41... Kf3 {[%clk 0:01:07.3]} 42. Ra7 {[%clk 0:02:31.3]} 42... Rxf2 {[%clk
0:01:03.7]} 43. Rf7+ {[%clk 0:02:29.9]} 43... Kxg3 {[%clk 0:01:00.7]} 44. R7xf2
{[%clk 0:02:28.9]} 44... Rxf2 {[%clk 0:00:59.6]} 45. Rxf2 {[%clk 0:02:28.3]} 1-0

[Event "Live Chess"]
[Site "Chess.com"]
[Date "2023.05.21"]
[Round "-"]
[White "JackCheetham1"]
[Black "FMOlexandrProhorov"]
[Result "0-1"]
[WhiteElo "1703"]
[BlackElo "2182"]
[TimeControl "300"]
[EndTime "2:53:10 PDT"]
[Termination "FMOlexandrProhorov won on time"]

1. e4 {[%clk 0:04:58.7]} 1... c5 {[%clk 0:04:58.1]} 2. Nf3 {[%clk 0:04:57.8]}
2... e6 {[%clk 0:04:57]} 3. d4 {[%clk 0:04:55.6]} 3... cxd4 {[%clk 0:04:56.8]}
4. Nxd4 {[%clk 0:04:55]} 4... Qb6 {[%clk 0:04:56.6]} 5. Nc3 {[%clk 0:04:50.4]}
5... Bc5 {[%clk 0:04:55.7]} 6. Be3 {[%clk 0:04:12]} 6... Nf6 {[%clk 0:03:36.1]}
7. Rb1 {[%clk 0:03:28.3]} 7... Nc6 {[%clk 0:03:19.9]} 8. Nxc6 {[%clk 0:02:27.2]}
8... Bxe3 {[%clk 0:03:17.5]} 9. fxe3 {[%clk 0:02:26.7]} 9... Qxe3+ {[%clk
0:02:19.7]} 10. Be2 {[%clk 0:02:06.8]} 10... bxc6 {[%clk 0:02:16.3]} 11. Qd2
{[%clk 0:01:43.6]} 11... Qxd2+ {[%clk 0:02:14.6]} 12. Kxd2 {[%clk 0:01:42.6]}
12... d5 {[%clk 0:02:14.5]} 13. Bf3 {[%clk 0:01:31.2]} 13... O-O {[%clk
0:02:12.7]} 14. exd5 {[%clk 0:01:20.3]} 14... exd5 {[%clk 0:02:11.7]} 15. Rhe1
{[%clk 0:01:15.7]} 15... Bf5 {[%clk 0:02:10.1]} 16. Rbd1 {[%clk 0:01:08]} 16...
Rfe8 {[%clk 0:02:09.3]} 17. Kc1 {[%clk 0:01:06.2]} 17... Kf8 {[%clk 0:02:08.2]}
18. h3 {[%clk 0:01:04.6]} 18... Rab8 {[%clk 0:02:03.2]} 19. Ne2 {[%clk
0:01:01.9]} 19... Ne4 {[%clk 0:02:00.4]} 20. Nd4 {[%clk 0:00:57.7]} 20... Bg6
{[%clk 0:01:55]} 21. Nxc6 {[%clk 0:00:51.7]} 21... Rb6 {[%clk 0:01:50.5]} 22.
Nd4 {[%clk 0:00:37.5]} 22... Rc8 {[%clk 0:01:46.5]} 23. c3 {[%clk 0:00:30.2]}
23... Ra6 {[%clk 0:01:31]} 24. a3 {[%clk 0:00:26.5]} 24... Rb6 {[%clk
0:01:29.9]} 25. Nc2 {[%clk 0:00:16.1]} 25... Nf2 {[%clk 0:01:27.2]} 26. Rd2
{[%clk 0:00:14.3]} 26... Nd3+ {[%clk 0:01:26.5]} 27. Kd1 {[%clk 0:00:12.8]}
27... Nxe1 {[%clk 0:01:25.5]} 28. Kxe1 {[%clk 0:00:12.7]} 28... Rxb2 {[%clk
0:01:24.7]} 29. Kd1 {[%clk 0:00:07.8]} 29... Rxc3 {[%clk 0:01:20.3]} 0-1

[Event "Live Chess"]
[Site "Chess.com"]
[Date "2023.05.21"]
[Round "-"]
[White "GwaryTek"]
[Black "MrBlond89"]
[Result "1-0"]
[WhiteElo "2049"]
[BlackElo "1351"]
[TimeControl "300"]
[EndTime "2:53:16 PDT"]
[Termination "GwaryTek won on time"]

1. d4 {[%clk 0:04:59.4]} 1... d5 {[%clk 0:04:58.6]} 2. c4 {[%clk 0:04:55.4]}
2... e5 {[%clk 0:04:57]} 3. dxe5 {[%clk 0:04:50.5]} 3... d4 {[%clk 0:04:56.1]}
4. Nf3 {[%clk 0:04:49.6]} 4... Nc6 {[%clk 0:04:55.4]} 5. Nbd2 {[%clk 0:04:47.6]}
5... Nge7 {[%clk 0:04:54.3]} 6. g3 {[%clk 0:04:45.5]} 6... Ng6 {[%clk
0:04:53.2]} 7. Bg2 {[%clk 0:04:44.4]} 7... Ngxe5 {[%clk 0:04:47.3]} 8. O-O
{[%clk 0:04:43.3]} 8... Be6 {[%clk 0:04:32.1]} 9. b4 {[%clk 0:04:26.9]} 9...
Nxf3+ {[%clk 0:04:17]} 10. Bxf3 {[%clk 0:04:13.7]} 10... Bxb4 {[%clk 0:04:14.6]}
11. Qa4 {[%clk 0:03:53.1]} 11... O-O {[%clk 0:04:04.7]} 12. Bxc6 {[%clk
0:03:42]} 12... Bxd2 {[%clk 0:03:51.9]} 13. Bxb7 {[%clk 0:03:40.5]} 13... Rb8
{[%clk 0:03:38.9]} 14. Qxa7 {[%clk 0:03:30]} 14... Bxc1 {[%clk 0:03:20.1]} 15.
Rfxc1 {[%clk 0:03:29.9]} 15... Bh3 {[%clk 0:02:55.6]} 16. a4 {[%clk 0:03:20.4]}
16... Re8 {[%clk 0:02:49.4]} 17. Bf3 {[%clk 0:03:14.8]} 17... c5 {[%clk
0:02:04.3]} 18. Qxc5 {[%clk 0:03:08.7]} 18... d3 {[%clk 0:01:47]} 19. Rd1 {[%clk
0:02:29]} 19... Qf6 {[%clk 0:01:24.9]} 20. Qh5 {[%clk 0:01:09.5]} 20... dxe2
{[%clk 0:01:05.9]} 21. Bxe2 {[%clk 0:00:56.1]} 21... Rxe2 {[%clk 0:01:01.1]} 22.
Qxe2 {[%clk 0:00:50.7]} 22... Qc6 {[%clk 0:00:49]} 23. Rd5 {[%clk 0:00:41.1]}
23... h6 {[%clk 0:00:29.4]} 24. a5 {[%clk 0:00:32.2]} 24... Re8 {[%clk
0:00:16.5]} 25. Qd3 {[%clk 0:00:25.9]} 25... Qe6 {[%clk 0:00:13.9]} 26. Rd8
{[%clk 0:00:19.7]} 26... Rxd8 {[%clk 0:00:06.5]} 27. Qxd8+ {[%clk 0:00:18]}
27... Kh7 {[%clk 0:00:05.9]} 28. Qd3+ {[%clk 0:00:16.3]} 28... g6 {[%clk
0:00:02.5]} 29. Rd1 {[%clk 0:00:13.8]} 1-0

[Event "Live Chess"]
[Site "Chess.com"]
[Date "2023.05.21"]
[Round "-"]
[White "apl_trainer"]
[Black "AttackingSnowLeopard"]
[Result "0-1"]
[WhiteElo "1748"]
[BlackElo "2208"]
[TimeControl "300"]
[EndTime "2:53:33 PDT"]
[Termination "AttackingSnowLeopard won by resignation"]

1. d4 {[%clk 0:04:56]} 1... Nf6 {[%clk 0:04:56.8]} 2. c4 {[%clk 0:04:54.8]} 2...
c6 {[%clk 0:04:54]} 3. Nc3 {[%clk 0:04:52.9]} 3... d5 {[%clk 0:04:53.5]} 4. Nf3
{[%clk 0:04:51.4]} 4... dxc4 {[%clk 0:04:50.9]} 5. a4 {[%clk 0:04:42]} 5... Bf5
{[%clk 0:04:48.6]} 6. e3 {[%clk 0:04:40.2]} 6... e6 {[%clk 0:04:46.5]} 7. Bxc4
{[%clk 0:04:38.8]} 7... Bb4 {[%clk 0:04:46.1]} 8. O-O {[%clk 0:04:37.8]} 8...
O-O {[%clk 0:04:45]} 9. Qe2 {[%clk 0:04:36.1]} 9... Nbd7 {[%clk 0:04:43.3]} 10.
e4 {[%clk 0:04:34.6]} 10... Bg6 {[%clk 0:04:42.3]} 11. Bd3 {[%clk 0:04:32.3]}
11... Bh5 {[%clk 0:04:41.7]} 12. e5 {[%clk 0:04:30.1]} 12... Nd5 {[%clk
0:04:40.5]} 13. Nxd5 {[%clk 0:04:28.5]} 13... cxd5 {[%clk 0:04:39.4]} 14. Qe3
{[%clk 0:04:26.5]} 14... Be7 {[%clk 0:04:39]} 15. a5 {[%clk 0:04:21.5]} 15...
Bg6 {[%clk 0:04:37.2]} 16. Bxg6 {[%clk 0:04:13.6]} 16... fxg6 {[%clk 0:04:33.6]}
17. Ng5 {[%clk 0:04:10.6]} 17... Bxg5 {[%clk 0:04:31.9]} 18. Qxg5 {[%clk
0:04:09.5]} 18... Qxg5 {[%clk 0:04:30.2]} 19. Bxg5 {[%clk 0:04:08.3]} 19... Rfc8
{[%clk 0:04:29.3]} 20. Rfc1 {[%clk 0:04:03.6]} 20... Kf7 {[%clk 0:04:26.3]} 21.
Kf1 {[%clk 0:04:00.8]} 21... h6 {[%clk 0:04:12.8]} 22. Bd2 {[%clk 0:03:58.4]}
22... g5 {[%clk 0:04:12.3]} 23. Bb4 {[%clk 0:03:54.9]} 23... Nf8 {[%clk
0:04:08.3]} 24. Bd6 {[%clk 0:03:49.3]} 24... Ng6 {[%clk 0:04:06.2]} 25. g3
{[%clk 0:03:45.4]} 25... Ke8 {[%clk 0:04:01.3]} 26. Ke2 {[%clk 0:03:34.2]} 26...
Kd7 {[%clk 0:04:00]} 27. Bc5 {[%clk 0:03:31.9]} 27... Rc6 {[%clk 0:03:56.8]} 28.
Rc3 {[%clk 0:03:25.1]} 28... a6 {[%clk 0:03:55]} 29. Rac1 {[%clk 0:03:19.8]}
29... Rac8 {[%clk 0:03:54.4]} 30. b4 {[%clk 0:03:15.3]} 30... Nh8 {[%clk
0:03:45]} 31. Rb1 {[%clk 0:03:13.4]} 31... Nf7 {[%clk 0:03:40.9]} 32. b5 {[%clk
0:03:12.1]} 32... axb5 {[%clk 0:03:37.4]} 33. Rxb5 {[%clk 0:03:10.7]} 33... Nd8
{[%clk 0:03:36.7]} 34. Rcb3 {[%clk 0:03:06.4]} 34... Ra6 {[%clk 0:03:33.5]} 35.
Bd6 {[%clk 0:02:41.2]} 35... Rc4 {[%clk 0:03:02.8]} 36. Kd3 {[%clk 0:01:57.9]}
36... Ra4 {[%clk 0:02:47.9]} 37. Rc3 {[%clk 0:01:49.6]} 37... Rc6 {[%clk
0:02:41.3]} 38. Rcb3 {[%clk 0:01:30]} 38... Rcc4 {[%clk 0:02:32.8]} 39. Ke2
{[%clk 0:01:24.3]} 39... Rxd4 {[%clk 0:02:24.4]} 40. Rxb7+ {[%clk 0:01:22.8]}
40... Nxb7 {[%clk 0:02:20.8]} 41. Rxb7+ {[%clk 0:01:21.8]} 41... Kd8 {[%clk
0:02:15.1]} 42. Rxg7 {[%clk 0:01:18.6]} 42... Re4+ {[%clk 0:02:11.3]} 43. Kf1
{[%clk 0:01:16.4]} 43... d4 {[%clk 0:02:07.2]} 44. Rb7 {[%clk 0:00:40.9]} 44...
d3 {[%clk 0:02:05.8]} 45. Rb2 {[%clk 0:00:38.4]} 45... Ra1+ {[%clk 0:02:02.6]}
46. Kg2 {[%clk 0:00:36.8]} 46... Re2 {[%clk 0:02:02.3]} 47. Rb8+ {[%clk
0:00:31.7]} 47... Kd7 {[%clk 0:02:00.9]} 48. Rb7+ {[%clk 0:00:30.6]} 48... Kc6
{[%clk 0:02:00.2]} 49. Rc7+ {[%clk 0:00:26.2]} 49... Kd5 {[%clk 0:01:56]} 0-1

[Event "Live Chess"]
[Site "Chess.com"]
[Date "2023.05.21"]
[Round "-"]
[White "PrinceCharming_1"]
[Black "Pablo_dmp"]
[Result "0-1"]
[WhiteElo "1616"]
[BlackElo "1859"]
[TimeControl "300"]
[EndTime "2:53:39 PDT"]
[Termination "Pablo_dmp won by resignation"]

1. e3 {[%clk 0:04:59.3]} 1... d5 {[%clk 0:04:57.8]} 2. d4 {[%clk 0:04:59.2]}
2... Nf6 {[%clk 0:04:56.1]} 3. Nf3 {[%clk 0:04:59]} 3... Bf5 {[%clk 0:04:52.9]}
4. Bd3 {[%clk 0:04:58.5]} 4... Bg6 {[%clk 0:04:50.4]} 5. Bxg6 {[%clk 0:04:56.1]}
5... hxg6 {[%clk 0:04:49.1]} 6. c4 {[%clk 0:04:54.8]} 6... e6 {[%clk 0:04:42]}
7. Bd2 {[%clk 0:04:52.7]} 7... a6 {[%clk 0:04:36.7]} 8. cxd5 {[%clk 0:04:51.7]}
8... exd5 {[%clk 0:04:35.4]} 9. Nc3 {[%clk 0:04:50.3]} 9... Bd6 {[%clk
0:04:29.3]} 10. Qb3 {[%clk 0:04:48.2]} 10... Nbd7 {[%clk 0:04:15.6]} 11. Nxd5
{[%clk 0:04:37]} 11... Nxd5 {[%clk 0:04:10]} 12. Qxd5 {[%clk 0:04:36.9]} 12...
Nf6 {[%clk 0:04:07.7]} 13. Qb3 {[%clk 0:04:30.9]} 13... b5 {[%clk 0:04:01.6]}
14. h3 {[%clk 0:04:27.1]} 14... Ne4 {[%clk 0:03:55.2]} 15. Qd3 {[%clk
0:04:24.4]} 15... f5 {[%clk 0:03:52.3]} 16. O-O {[%clk 0:04:23]} 16... Qe7
{[%clk 0:03:36.2]} 17. Ne5 {[%clk 0:04:10]} 17... Bxe5 {[%clk 0:03:29.3]} 18.
dxe5 {[%clk 0:04:09.9]} 18... Rd8 {[%clk 0:03:26]} 19. Qc3 {[%clk 0:04:03.8]}
0-1

[Event "Live Chess"]
[Site "Chess.com"]
[Date "2023.05.21"]
[Round "-"]
[White "LiamClery2020"]
[Black "Tech_Titan"]
[Result "1-0"]
[WhiteElo "1984"]
[BlackElo "1105"]
[TimeControl "300"]
[EndTime "2:53:54 PDT"]
[Termination "LiamClery2020 won by checkmate"]

1. e4 {[%clk 0:04:59.5]} 1... e5 {[%clk 0:04:56.6]} 2. Nc3 {[%clk 0:04:58.2]}
2... Nc6 {[%clk 0:04:28.1]} 3. Bc4 {[%clk 0:04:56.6]} 3... Bc5 {[%clk
0:04:07.4]} 4. Qg4 {[%clk 0:04:55.1]} 4... Nf6 {[%clk 0:04:01]} 5. Qxg7 {[%clk
0:04:50.3]} 5... Rf8 {[%clk 0:03:55.3]} 6. d3 {[%clk 0:04:48.9]} 6... h5 {[%clk
0:03:51.1]} 7. Bg5 {[%clk 0:04:46.7]} 7... d6 {[%clk 0:03:48.1]} 8. Bxf6 {[%clk
0:04:44.8]} 8... Qd7 {[%clk 0:03:43.6]} 9. Nf3 {[%clk 0:04:43.5]} 9... a6 {[%clk
0:03:36.4]} 10. Nd5 {[%clk 0:04:42.6]} 10... b5 {[%clk 0:03:34.8]} 11. Be7
{[%clk 0:04:41.6]} 11... bxc4 {[%clk 0:03:28.6]} 12. Qxf8# {[%clk 0:04:40.1]}
1-0

[Event "Live Chess"]
[Site "Chess.com"]
[Date "2023.05.21"]
[Round "-"]
[White "VovaOvchar1990"]
[Black "wadsy27"]
[Result "0-1"]
[WhiteElo "1222"]
[BlackElo "2555"]
[TimeControl "300"]
[EndTime "2:53:58 PDT"]
[Termination "wadsy27 won by checkmate"]

1. e4 {[%clk 0:04:57.1]} 1... e6 {[%clk 0:04:58.5]} 2. Bc4 {[%clk 0:04:55.7]}
2... d5 {[%clk 0:04:57.7]} 3. exd5 {[%clk 0:04:54.7]} 3... exd5 {[%clk
0:04:57.6]} 4. Bb3 {[%clk 0:04:53.7]} 4... Nf6 {[%clk 0:04:56.3]} 5. Nf3 {[%clk
0:04:52.5]} 5... Bd6 {[%clk 0:04:54.3]} 6. O-O {[%clk 0:04:51.2]} 6... O-O
{[%clk 0:04:53.5]} 7. h3 {[%clk 0:04:50.2]} 7... Bf5 {[%clk 0:04:52]} 8. d3
{[%clk 0:04:48.7]} 8... c6 {[%clk 0:04:51.3]} 9. c3 {[%clk 0:04:46.4]} 9... Bc7
{[%clk 0:04:47.1]} 10. Bc2 {[%clk 0:04:45]} 10... Qd6 {[%clk 0:04:44.7]} 11. d4
{[%clk 0:04:39.6]} 11... Be4 {[%clk 0:04:42.1]} 12. g3 {[%clk 0:04:02.2]} 12...
Nbd7 {[%clk 0:04:35.6]} 13. Bf4 {[%clk 0:03:44.5]} 13... Qe6 {[%clk 0:04:34.6]}
14. Bxc7 {[%clk 0:03:40.1]} 14... Qxh3 {[%clk 0:04:33.3]} 15. Nh2 {[%clk
0:03:23.9]} 15... Qg2# {[%clk 0:04:30.5]} 0-1

[Event "Live Chess"]
[Site "Chess.com"]
[Date "2023.05.21"]
[Round "-"]
[White "lHolyDiverl"]
[Black "Duke_of_Bebington"]
[Result "0-1"]
[WhiteElo "555"]
[BlackElo "1587"]
[TimeControl "300"]
[EndTime "2:54:05 PDT"]
[Termination "Duke_of_Bebington won on time"]

1. d4 {[%clk 0:04:58.4]} 1... d5 {[%clk 0:04:55]} 2. Nc3 {[%clk 0:04:57.7]} 2...
Nf6 {[%clk 0:04:52.5]} 3. Bf4 {[%clk 0:04:57]} 3... c6 {[%clk 0:04:49.9]} 4. e3
{[%clk 0:04:56.4]} 4... Bf5 {[%clk 0:04:48.4]} 5. Bd3 {[%clk 0:04:50.1]} 5...
Bxd3 {[%clk 0:04:46.5]} 6. Qxd3 {[%clk 0:04:49.3]} 6... e6 {[%clk 0:04:46.1]} 7.
Nf3 {[%clk 0:04:44.4]} 7... Nbd7 {[%clk 0:04:44.8]} 8. O-O {[%clk 0:04:41.5]}
8... Be7 {[%clk 0:04:44.1]} 9. Rfe1 {[%clk 0:04:34.9]} 9... Qb6 {[%clk 0:04:40]}
10. Rab1 {[%clk 0:04:30.3]} 10... O-O {[%clk 0:04:35]} 11. e4 {[%clk 0:04:28.7]}
11... dxe4 {[%clk 0:04:33.8]} 12. Nxe4 {[%clk 0:04:22.3]} 12... Nxe4 {[%clk
0:04:32]} 13. Rxe4 {[%clk 0:04:17.6]} 13... Nf6 {[%clk 0:04:30.6]} 14. Ree1
{[%clk 0:03:52.7]} 14... Nd5 {[%clk 0:04:26.2]} 15. Be5 {[%clk 0:03:30.5]} 15...
Bf6 {[%clk 0:04:15]} 16. h3 {[%clk 0:03:18.3]} 16... Rad8 {[%clk 0:04:12.3]} 17.
Re4 {[%clk 0:03:07.8]} 17... Nb4 {[%clk 0:03:57.6]} 18. Qd2 {[%clk 0:02:49]}
18... Bxe5 {[%clk 0:03:52.2]} 19. Rxe5 {[%clk 0:02:36.5]} 19... Rd5 {[%clk
0:03:41.6]} 20. Rxd5 {[%clk 0:02:28.5]} 20... Nxd5 {[%clk 0:03:33.5]} 21. b3
{[%clk 0:02:18.1]} 21... Qb4 {[%clk 0:03:24.3]} 22. Re1 {[%clk 0:01:47.3]} 22...
Qxd2 {[%clk 0:03:12.4]} 23. Nxd2 {[%clk 0:01:45.8]} 23... Nc3 {[%clk 0:02:59.2]}
24. a4 {[%clk 0:01:36.2]} 24... Rd8 {[%clk 0:02:57.2]} 25. Nf3 {[%clk
0:01:29.1]} 25... b5 {[%clk 0:02:49.3]} 26. a5 {[%clk 0:01:20.4]} 26... b4
{[%clk 0:02:41.3]} 27. Re5 {[%clk 0:01:15.9]} 27... Rd5 {[%clk 0:02:38.6]} 28.
a6 {[%clk 0:01:00.7]} 28... Kf8 {[%clk 0:02:28.8]} 29. Rxd5 {[%clk 0:00:48.7]}
29... Nxd5 {[%clk 0:02:19.4]} 30. Ne5 {[%clk 0:00:39.6]} 30... Nc7 {[%clk
0:02:11.5]} 31. Nxc6 {[%clk 0:00:31]} 31... Nxa6 {[%clk 0:02:10.7]} 32. Nxa7
{[%clk 0:00:27.8]} 32... Ke8 {[%clk 0:02:08.2]} 33. Nc6 {[%clk 0:00:23.9]} 33...
Kd7 {[%clk 0:02:05.8]} 34. Ne5+ {[%clk 0:00:21.5]} 34... Ke7 {[%clk 0:02:03.9]}
35. Kf1 {[%clk 0:00:19.7]} 35... f6 {[%clk 0:02:01.6]} 36. Nc6+ {[%clk
0:00:16.1]} 36... Kd6 {[%clk 0:01:58.7]} 37. Nd8 {[%clk 0:00:15]} 37... Kd7
{[%clk 0:01:54.8]} 38. Nf7 {[%clk 0:00:14.1]} 38... Nc7 {[%clk 0:01:47.1]} 39.
Ke2 {[%clk 0:00:12.2]} 39... Nd5 {[%clk 0:01:46]} 40. Kd3 {[%clk 0:00:10.7]}
40... Ke7 {[%clk 0:01:33.8]} 41. Nh8 {[%clk 0:00:08.1]} 41... Kf8 {[%clk
0:01:31.3]} 42. Kc4 {[%clk 0:00:01.4]} 42... Kg8 {[%clk 0:01:28.5]} 43. Kc5
{[%clk 0:00:00.6]} 43... Kxh8 {[%clk 0:01:26.6]} 0-1

[Event "Live Chess"]
[Site "Chess.com"]
[Date "2023.05.21"]
[Round "-"]
[White "PetorPrydatko"]
[Black "martynstanley"]
[Result "0-1"]
[WhiteElo "355"]
[BlackElo "1011"]
[TimeControl "300"]
[EndTime "2:54:09 PDT"]
[Termination "martynstanley won by checkmate"]

1. d4 {[%clk 0:04:54.6]} 1... e6 {[%clk 0:04:58.5]} 2. c3 {[%clk 0:04:52.8]}
2... d5 {[%clk 0:04:57.9]} 3. c4 {[%clk 0:04:48]} 3... c5 {[%clk 0:04:57.1]} 4.
b3 {[%clk 0:04:40.4]} 4... Nc6 {[%clk 0:04:55.7]} 5. dxc5 {[%clk 0:04:38.2]}
5... Bxc5 {[%clk 0:04:54.1]} 6. cxd5 {[%clk 0:04:36.2]} 6... exd5 {[%clk
0:04:51.8]} 7. b4 {[%clk 0:04:24.3]} 7... Bxb4+ {[%clk 0:04:47.9]} 8. Bd2 {[%clk
0:04:06.3]} 8... Bc5 {[%clk 0:04:44.9]} 9. Nc3 {[%clk 0:03:45.9]} 9... Qb6
{[%clk 0:04:43]} 10. Nxd5 {[%clk 0:03:40.7]} 10... Bxf2# {[%clk 0:04:41.3]} 0-1

[Event "Live Chess"]
[Site "Chess.com"]
[Date "2023.05.21"]
[Round "-"]
[White "RichardABates"]
[Black "MarkLim1"]
[Result "1-0"]
[WhiteElo "2076"]
[BlackElo "1723"]
[TimeControl "300"]
[EndTime "2:54:46 PDT"]
[Termination "RichardABates won by resignation"]

1. d4 {[%clk 0:04:59.1]} 1... Nf6 {[%clk 0:04:59.1]} 2. Nf3 {[%clk 0:04:57.4]}
2... e6 {[%clk 0:04:58.4]} 3. c4 {[%clk 0:04:56.1]} 3... d5 {[%clk 0:04:57.2]}
4. Nc3 {[%clk 0:04:52]} 4... c5 {[%clk 0:04:55.8]} 5. cxd5 {[%clk 0:04:50.5]}
5... Nxd5 {[%clk 0:04:54.7]} 6. e4 {[%clk 0:04:49.4]} 6... Nxc3 {[%clk
0:04:54.1]} 7. bxc3 {[%clk 0:04:48.5]} 7... cxd4 {[%clk 0:04:54]} 8. cxd4 {[%clk
0:04:47.8]} 8... Bb4+ {[%clk 0:04:53.6]} 9. Bd2 {[%clk 0:04:46.7]} 9... Bxd2+
{[%clk 0:04:53.5]} 10. Qxd2 {[%clk 0:04:46]} 10... O-O {[%clk 0:04:53.4]} 11.
Bd3 {[%clk 0:04:45.3]} 11... Nc6 {[%clk 0:04:52.1]} 12. e5 {[%clk 0:04:43.6]}
12... Qa5 {[%clk 0:04:50.7]} 13. Qxa5 {[%clk 0:04:38.8]} 13... Nxa5 {[%clk
0:04:50.6]} 14. Kd2 {[%clk 0:04:37.5]} 14... Rd8 {[%clk 0:04:48.1]} 15. Ke3
{[%clk 0:04:35.1]} 15... b6 {[%clk 0:04:47.3]} 16. Rhc1 {[%clk 0:04:33.1]} 16...
Bb7 {[%clk 0:04:42.5]} 17. Ng5 {[%clk 0:04:28.5]} 17... h6 {[%clk 0:04:40.8]}
18. Ne4 {[%clk 0:04:11.9]} 18... Rac8 {[%clk 0:04:34.4]} 19. Nd6 {[%clk
0:04:09.5]} 19... Rxc1 {[%clk 0:04:33.2]} 20. Rxc1 {[%clk 0:04:08.5]} 20... Bxg2
{[%clk 0:04:32.2]} 21. f3 {[%clk 0:04:07.2]} 21... f6 {[%clk 0:04:17]} 22. Rc7
{[%clk 0:04:02.4]} 22... fxe5 {[%clk 0:04:11.3]} 23. dxe5 {[%clk 0:04:01.1]}
23... Bh3 {[%clk 0:04:05.7]} 24. Be4 {[%clk 0:03:39.9]} 24... Bf5 {[%clk
0:03:42.2]} 25. Bxf5 {[%clk 0:03:37]} 25... exf5 {[%clk 0:03:40.6]} 26. Nxf5
{[%clk 0:03:35.9]} 26... Rd1 {[%clk 0:03:20.5]} 27. Rxg7+ {[%clk 0:03:32.1]}
27... Kf8 {[%clk 0:03:19.4]} 28. Rc7 {[%clk 0:03:27.7]} 28... Ra1 {[%clk
0:03:13.5]} 29. Kf4 {[%clk 0:03:16.2]} 29... Rxa2 {[%clk 0:03:12.3]} 30. e6
{[%clk 0:03:12.6]} 30... Ra4+ {[%clk 0:03:04.3]} 31. Ke5 {[%clk 0:03:10.9]}
31... Rc4 {[%clk 0:03:02.3]} 32. e7+ {[%clk 0:02:55.6]} 1-0